Cogmind - Beta 11 X5 @@@ ROGUE MODE // 2021.07.18 @ 17:49:55 Player: Runia Result: Destroyed by NK-0LA with NK-0LA's Tesla Doomcannon Performance ------------- Evolutions (1) 500 Regions Visited (5) 1000 Robots Destroyed (51) 255 Value Destroyed (1154) 1154 Prototype IDs (27) 540 Alien Tech Used (0) 0 Bonus (300) 300 TOTAL SCORE: 3749 Bonus ------- Aligned with FarCom 300 Cogmind --------- Core Integrity 0/400 Matter 128/300 Energy 100/100 System Corruption 21% Temperature Cool (0) Movement Treading (460) Ox3 Location -8/Mines Parts ------- > --- POWER (1) -------- (None) > --- PROPULSION (2) --- Light Treads > --- UTILITY (3) ------ High-capacity Storage Unit Hardened Heavy Armor Plating > --- WEAPON (3) ------- Gauss Rifle Mining Claw > --- INVENTORY (20) --- Improved Heat Sink Coolant Injector Superbattery (1500) Experimental Sensor Array Improved Terrain Scanner Beam Rifle Heavy Rocket Launcher Datajack Peak State ------------ > --- POWER ------------ Ion Engine > --- PROPULSION ------- Light Treads Light Treads > --- UTILITY ---------- High-capacity Storage Unit Experimental Sensor Array Terrain Scan Processor > --- WEAPON ----------- Medium Laser Medium Laser Beam Rifle > --- INVENTORY -------- Light Ion Engine Light Treads Light Treads Light Treads Light Treads Heat Sink Coolant Injector Improved Terrain Scanner Hardened Light Armor Plating Hardened Heavy Armor Plating Arc Projector Beam Rifle Gauss Rifle Gauss Rifle Heavy Rocket Launcher Datajack Mining Claw [Rating: 23] Favorites ----------- Power Ion Engine Engine Ion Engine Propulsion Light Treads Treads Light Treads Leg Aluminum Leg Utility Terrain Scan Processor Device Heat Sink Storage High-capacity Storage Unit Processor Terrain Scan Processor Protection Hardened Light Armor Plating Weapon Medium Laser Energy Gun Medium Laser Ballistic Gun Light Assault Rifle Launcher Heavy Rocket Launcher Slashing Weapon Mining Claw Build | -11 -10 -9 -9 -9 -8 ------- Run | Scr Mat Mat Min Exi Min Slots Evolved 2 | . . 2 . . . Power . | . . . . . . Propulsion . | . . . . . . Utility 1 | . . 1 . . . Weapon 1 | . . 1 . . . Parts Attached 37 | 1 4 14 4 2 12 Power 3 | . 1 1 . . 1 Engine 3 | . 1 1 . . 1 Core . | . . . . . . Reactor . | . . . . . . Propulsion 9 | . 2 2 . . 5 Treads 9 | . 2 2 . . 5 Leg . | . . . . . . Wheel . | . . . . . . Hover . | . . . . . . Flight . | . . . . . . Utility 15 | 1 1 5 4 2 2 Device 10 | 1 . 4 3 2 . Storage 2 | . 1 . 1 . . Processor 1 | . . 1 . . . Hackware . | . . . . . . Protection 2 | . . . . . 2 Artifact . | . . . . . . Weapon 10 | . . 6 . . 4 Energy Gun 6 | . . 6 . . . Energy Cannon . | . . . . . . Ballistic Gun 2 | . . . . . 2 Ballistic Cannon . | . . . . . . Launcher 1 | . . . . . 1 Special Weapon . | . . . . . . Impact Weapon . | . . . . . . Slashing Weapon 1 | . . . . . 1 Piercing Weapon . | . . . . . . Special Melee Weapon . | . . . . . . Unidentified Prototypes 1 | . . . 1 . . Parts Lost 16 | . . 3 . 3 10 Power 3 | . . 1 . 1 1 Propulsion 5 | . . . . . 5 Utility 2 | . . . . . 2 Weapon 6 | . . 2 . 2 2 Highest Loss Streak 8 | . . 2 . 3 8 Average Slot Usage (%) 97 | . 100 96 100 99 61 Engine 11 | . 14 11 11 11 1 Treads 20 | . 17 22 22 22 18 Leg 3 | . 10 . . . . Device 11 | . 14 11 11 11 1 Storage 11 | . 14 11 11 11 11 Processor 6 | . . 8 11 11 7 Energy Gun 20 | . . 28 33 32 . Ballistic Gun 9 | . 28 2 . . 8 Naked Turns . | . . . . . . Heaviest Build 66 | 11 28 33 53 53 66 Greatest Support 40 | 20 40 40 40 40 40 Greatest Overweight (x) 1 | . . . 1 1 1 Average Overweight (x) . | . . . . 1 1 Largest Inventory Capacity 20 | 8 15 15 20 20 20 Average Capacity 15 | 8 10 15 18 20 20 Most Carried 20 | 6 11 15 18 20 19 Average Carried 13 | 4 6 12 16 19 12 Final Capacity 20 | 8 15 15 20 20 20 Final Carried 20 | 5 11 15 18 20 8 Class Distribution -------------------- 55% | Gunner 37% | Mutant 7% | Skirmisher Dominant Class ---------------- Mutant | -10/Materials Gunner | -9/Materials Gunner | -9/Mines Gunner | -9/Exiles Mutant | -8/Mines Resources | -11 -10 -9 -9 -9 -8 ----------- Run | Scr Mat Mat Min Exi Min Matter Collected 513 | 214 114 134 20 . 31 Remotely . | . . . . . . Salvage Created 1623 | 74 257 853 328 . 111 Parts 105 | 7 28 51 18 . 1 Haulers Intercepted 3 | . . 3 . . . Recyclers Shooed 3 | . 1 1 . . 1 Parts Field Recycled . | . . . . . . Retrieved Matter . | . . . . . . Parts Self-Destructed . | . . . . . . Prevented . | . . . . . . Kills | -11 -10 -9 -9 -9 -8 ------- Run | Scr Mat Mat Min Exi Min Combat Hostiles Destroyed 36 | . 8 14 9 . 5 Guns 29 | . 8 13 8 . . AOE 5 | . . . . . 5 Classes Destroyed 11 | 2 4 4 1 . . Worker 3 | . 2 1 . . . Builder 2 | . . 1 1 . . Tunneler 2 | 1 . 1 . . . Hauler 3 | . . 3 . . . Recycler 1 | 1 . . . . . Watcher 4 | . 2 2 . . . Swarmer 13 | . 6 3 4 . . Grunt 15 | . 2 6 3 . 4 Brawler 2 | . . . 1 . 1 Duelist 2 | . . 1 1 . . Sentry 4 | . . 4 . . . Best Kill Streak 5 | 2 3 4 4 . 5 Combat Bots Only 5 | . 3 3 4 . 5 Max Kills in Single Turn 3 | 1 1 2 2 . 3 Gunslinging 1 | . . 1 1 . . Exploded 3 | . . . . . 3 Melee . | . . . . . . Uniques/NPCs Destroyed . | . . . . . . Combat | -11 -10 -9 -9 -9 -8 -------- Run | Scr Mat Mat Min Exi Min Damage Taken 3328 | . 227 530 253 238 2080 Core 423 | . 15 50 33 24 301 Absorbed by Shields . | . . . . . . Core Remaining (%) 97 | 100 94 . . . . Volleys Fired 116 | 2 37 49 13 1 14 Largest 3 | 2 2 3 3 3 2 Hottest 156 | 40 40 156 156 156 56 Shots Fired 274 | 4 74 136 39 3 18 Gun 271 | 4 74 136 39 3 15 Cannon . | . . . . . . Launcher 3 | . . . . . 3 Special . | . . . . . . Kinetic 102 | 4 74 9 . . 15 Thermal 169 | . . 127 39 3 . Explosive 3 | . . . . . 3 Electromagnetic . | . . . . . . Robot Hit Streak 13 | 4 12 13 10 . 13 Robot Miss Streak 5 | . 2 4 5 . 3 Penetration Max 1 | . . . . . 1 Secondary Targets 3 | . . 2 1 . . Max Gunslinging Chain 1 | . . 1 1 . . Shots Hit Robots 166 | 4 41 84 25 . 12 Core Hits 83 | 4 20 36 13 . 10 Critical Kills . | . . . . . . Critical Parts Destroyed . | . . . . . . Critical Strikes 10 | . . 8 2 . . Burn 10 | . . 8 2 . . Melee Attacks 2 | . . . . . 2 Impact . | . . . . . . Slashing 2 | . . . . . 2 Piercing . | . . . . . . Sneak Attacks . | . . . . . . Combat Hostiles . | . . . . . . Follow-up Attacks . | . . . . . . Damage Inflicted 2759 | 30 334 1169 397 . 829 Guns 2118 | 30 334 1168 397 . 189 Cannons . | . . . . . . Explosions 618 | . . . . . 618 Melee 22 | . . . . . 22 Ramming 1 | . . 1 . . . Kinetic 625 | 30 334 72 . . 189 Thermal 1493 | . . 1096 397 . . Explosive 618 | . . . . . 618 Electromagnetic . | . . . . . . Impact . | . . . . . . Slashing 22 | . . . . . 22 Piercing . | . . . . . . Highest Corruption 20 | . . . . . 20 Average Corruption 10 | . . . . . 10 Corruption Purged . | . . . . . . Effects 2 | . . . . . 2 Message Errors 1 | . . . . . 1 Matter Fused 1 | . . . . . 1 Overload Shots . | . . . . . . Overflow Damage 20 | . . . . . 20 Projectiles . | . . . . . . Explosions 20 | . . . . . 20 Melee . | . . . . . . Knockbacks . | . . . . . . Impact . | . . . . . . Kinetic . | . . . . . . Secondary . | . . . . . . Self-Inflicted Damage 132 | . . . . . 132 Shots 3 | . . . . . 3 Rammed 1 | . . 1 . . . Targets Rammed 1 | . . 1 . . . Kicked . | . . . . . . Crushed . | . . . . . . Highest Temperature 346 | . 27 346 300 57 27 Average Temperature 84 | . 9 84 108 35 20 Received Heat Transfer 546 | . 72 180 54 60 180 Siege Activations . | . . . . . . Robots Corrupted . | . . . . . . Combat Hostiles . | . . . . . . Parts Fried . | . . . . . . Impact Corruptions . | . . . . . . Robots Melted 4 | . . 3 1 . . Combat Hostiles 2 | . . 1 1 . . Parts Melted 12 | . . 9 3 . . Heat Transferred 4753 | . . 3532 1221 . . Parts Sabotaged . | . . . . . . Parts Stolen . | . . . . . . Parts Stripped . | . . . . . . Power Chain Reactions . | . . . . . . Missiles Intercepted . | . . . . . . Alert | -11 -10 -9 -9 -9 -8 ------- Run | Scr Mat Mat Min Exi Min Peak Influence 305 | 10 281 275 305 . 109 Initial 90 | . 6 7 90 . . Average 137 | 8 105 137 192 . 75 Maximum Alert Level 1 | . 1 1 1 . . Low Security (%) 73 | 100 81 75 55 . 100 Level 1 26 | . 18 24 44 . . Level 2 . | . . . . . . Level 3 . | . . . . . . Level 4 . | . . . . . . Level 5 . | . . . . . . High Security . | . . . . . . Max Security . | . . . . . . Squads Dispatched 5 | . . 4 1 . . Investigation 3 | . . 2 1 . . Extermination . | . . . . . . Reinforcement 2 | . . 2 . . . Assault . | . . . . . . Garrison . | . . . . . . Intercept . | . . . . . . Construction Impeded . | . . . . . . Haulers Reinforced . | . . . . . . Cargo Convoy Interrupts . | . . . . . . Stealth | -11 -10 -9 -9 -9 -8 --------- Run | Scr Mat Mat Min Exi Min Distress Signals 2 | . 1 1 . . . Communications Jammed . | . . . . . . Distress Signals . | . . . . . . Times Spotted 57 | . 14 21 9 6 7 Peak Tracking Total 9 | . 4 5 4 9 7 Tactical Retreats . | . . . . . . Traps | -11 -10 -9 -9 -9 -8 ------- Run | Scr Mat Mat Min Exi Min Traps Triggered 2 | . . 2 . . . Indirectly . | . . . . . . Trap Hack Attempts . | . . . . . . Triggered . | . . . . . . Disarmed . | . . . . . . Reprogrammed . | . . . . . . Reused . | . . . . . . Traps Extracted . | . . . . . . Installed . | . . . . . . Triggered . | . . . . . . Exploded 1 | . . . . . 1 Machines | -11 -10 -9 -9 -9 -8 ---------- Run | Scr Mat Mat Min Exi Min Machines Disabled 2 | . . . . 2 . Max in Single Turn 1 | . . . . 1 . Machines Sabotaged . | . . . . . . Garrisons Compromised . | . . . . . . Overloaded Fab Kills . | . . . . . . Fab Network Shutdowns . | . . . . . . Hacking | -11 -10 -9 -9 -9 -8 --------- Run | Scr Mat Mat Min Exi Min Machines Accessed 14 | . 7 4 1 2 . Terminals 9 | . 7 2 . . . Fabricators . | . . . . . . Repair Stations 1 | . . 1 . . . Recycling Units . | . . . . . . Scanalyzers 1 | . . 1 . . . Garrison Access . | . . . . . . Total Hacks 41 | . 22 16 1 2 . Successful 25 | . 9 13 1 2 . Failed 16 | . 13 3 . . . Catastrophic 3 | . 2 1 . . . Database Lockouts . | . . . . . . Manual 13 | . 7 5 . 1 . Terminals 27 | . 22 5 . . . Fabricators . | . . . . . . Repair Stations 5 | . . 5 . . . Recycling Units . | . . . . . . Scanalyzers 6 | . . 6 . . . Garrison Access . | . . . . . . Terminal Hacks 11 | . 5 3 1 2 . Record 1 | . . . . 1 . Robot Analysis 2 | . . 2 . . . Prototype ID Bank 2 | . 2 . . . . Open Door 1 | . . . 1 . . Terminal Index 1 | . . 1 . . . Alert Level 1 | . 1 . . . . Locate Traps 2 | . 2 . . . . EX-Prototype ID Bank 1 | . . . . 1 . Fabricator Hacks . | . . . . . . Repair Station Hacks 4 | . . 4 . . . Scan Component 2 | . . 2 . . . Repair 2 | . . 2 . . . Recycling Unit Hacks . | . . . . . . Scanalyzer 5 | . . 5 . . . Insert Component 3 | . . 3 . . . Analyze 2 | . . 2 . . . Garrison Access Hacks . | . . . . . . Unauthorized Hacks 5 | . 4 1 . . . Terminals 5 | . 4 1 . . . Botnet 5 | . 4 1 . . . Fabricators . | . . . . . . Repair Stations . | . . . . . . Recycling Units . | . . . . . . Scanalyzers . | . . . . . . Garrison Access . | . . . . . . Data Cores Recovered . | . . . . . . Used . | . . . . . . Hacking Detections 9 | . 6 3 . . . Full Trace Events . | . . . . . . Feedback Events . | . . . . . . Feedback Blocked . | . . . . . . Robot Schematics Acquired . | . . . . . . Robots Built . | . . . . . . Matter . | . . . . . . Time . | . . . . . . Total Robot Build Rating . | . . . . . . Part Schematics Acquired 2 | . . 2 . . . Parts Built . | . . . . . . Matter . | . . . . . . Time . | . . . . . . Total Part Build Rating . | . . . . . . Parts Repaired 2 | . . 2 . . . Time 64 | . . 64 . . . Parts Recycled . | . . . . . . Recycled Matter . | . . . . . . Retrieved Matter . | . . . . . . Retrieved Components . | . . . . . . Parts Scanalyzed 2 | . . 2 . . . Part Schematics Acquired 2 | . . 2 . . . Parts Damaged . | . . . . . . Bothacking | -11 -10 -9 -9 -9 -8 ------------ Run | Scr Mat Mat Min Exi Min Used RIF Installer . | . . . . . . Robots Hacked . | . . . . . . Non-combat . | . . . . . . Combat . | . . . . . . Robot Hacks Applied . | . . . . . . Relay Couplers Released . | . . . . . . Robots Rewired . | . . . . . . Allies Hacked . | . . . . . . Hacks Repelled . | . . . . . . Allies | -11 -10 -9 -9 -9 -8 -------- Run | Scr Mat Mat Min Exi Min Total Allies 3 | . . . 3 . . Largest Group 3 | . . . 3 3 . Highest-Rated Group 40 | . . . 40 40 . Highest-Rated Ally 16 | . . . 16 16 . Total Orders . | . . . . . . Ally Attacks 20 | . . . . 20 . Total Damage 154 | . . . . 154 . Kills 1 | . . . . 1 . Allies Corrupted . | . . . . . . Allies Melted . | . . . . . . Intel | -11 -10 -9 -9 -9 -8 ------- Run | Scr Mat Mat Min Exi Min Robot Analysis Total 2 | . . 2 . . . Derelict Logs Recovered 1 | . . . 1 . . Drone Launches . | . . . . . . Drone Recoveries . | . . . . . . Exploration | -11 -10 -9 -9 -9 -8 ------------- Run | Scr Mat Mat Min Exi Min Turns Passed 3312 | 28 1009 725 748 716 86 Spaces Moved 1435 | 16 603 248 284 272 12 Core . | . . . . . . Treads 1189 | . 373 248 284 272 12 Legs 246 | 16 230 . . . . Wheels . | . . . . . . Hover . | . . . . . . Flight . | . . . . . . Fastest Speed 120 | 120 120 160 160 260 260 Average Speed 187 | 120 144 160 236 260 260 Slowest Speed 260 | 120 160 160 260 260 260 Overloaded Moves . | . . . . . . Propulsion Burnouts . | . . . . . . Robots Hopped . | . . . . . . Cave-ins Triggered . | . . . . . . Exploration Rate (%) 41 | 3 83 31 69 61 3 Regions Visited 5 Branch Regions 3 Pre-discovered Areas 1 | . . . . 1 . Known Exits Taken . | . . . . . . Unknown Exits Taken 5 | 1 1 1 1 1 . Scrap Searched 1 | . . . 1 . . Spaces Dug . | . . . . . . Terrain Destroyed 56 | . . . . . 56 Melee . | . . . . . . Projectile 1 | . . . . . 1 AOE 55 | . . . . . 55 Terrain Rammed . | . . . . . . Walls Destroyed . | . . . . . . Machines Disabled . | . . . . . . Actions | -11 -10 -9 -9 -9 -8 --------- Run | Scr Mat Mat Min Exi Min Total 1837 | 22 682 472 334 280 47 Wait 180 | . 25 133 22 . . Move 1430 | 15 602 247 283 271 12 Hop . | . . . . . . Pick Up 42 | 2 10 18 7 3 2 Fast Attach 3 | . . 1 . 2 . Attach 21 | 1 3 6 . . 11 Detach 1 | . . . . . 1 Swap 13 | . 1 7 4 . 1 Drop 28 | 2 4 10 5 3 4 Fire 116 | 2 37 49 13 1 14 Melee 2 | . . . . . 2 Ram . | . . . . . . Kick . | . . . . . . Crush 1 | . . 1 . . . Escape Stasis . | . . . . . . Rewire . | . . . . . . Trap . | . . . . . . Miscellaneous . | . . . . . . Route ------- -11/Scrapyard -10/Materials (discovered 4 exits: *Mat x3 / [*Min]) -9/Materials (discovered 2 exits: [*Mat] / *Min) -9/Mines -9/Exiles -8/Mines History --------- Turn | Location | Event 8 | -11/Scrapyard | Discovered new exit (range 3) 29 | -11/Scrapyard | Entered Materials 96 | -10/Materials | Discovered new exit (range 3) 212 | -10/Materials | Discovered new exit (range 8) 312 | -10/Materials | Build established: Mutant 478 | -10/Materials | Discovered new exit (range 16) 611 | -10/Materials | Discovered new exit (range 14) 1038 | -10/Materials | Entered another Materials area 1038 | -9/Materials | Evolved 2 slots: Utility x1, Weapon x1 1457 | -9/Materials | Repaired Imp. Terrain Scanner 1486 | -9/Materials | Repaired Med. Laser 1503 | -9/Materials | Discovered new exit (range 8) 1747 | -9/Materials | Discovered new exit (range 8) 1763 | -9/Materials | Entered Mines 1805 | -9/Mines | Learned Materials garrison access intel 1836 | -9/Mines | Build established: Gunner 1918 | -9/Mines | Met a Derelict shopkeep closing up shop 2029 | -9/Mines | Assisted by bots powering up and referring to "LRC-V3" 2107 | -9/Mines | Found a damaged Exp. Sensor Array with a note attached 2112 | -9/Mines | Found Prototype Device 2113 | -9/Mines | Identified Exp. Sensor Array 2498 | -9/Mines | Deemed a non-threat by the Exiles lab entrance 2501 | -9/Mines | Discovered new exit (range 5) 2511 | -9/Mines | Entered Exiles 2511 | -9/Exiles | Accompanied by 3 allies 2581 | -9/Exiles | Met 8R-AWN 2628 | -9/Exiles | Met EX-HEX 2727 | -9/Exiles | Met EX-DEC 2742 | -9/Exiles | Learned location of Zion (-6) 2789 | -9/Exiles | Met EX-BIN 2828 | -9/Exiles | Aligned with FarCom system 2831 | -9/Exiles | Given EX-Vault access code 2896 | -9/Exiles | Opened EX-Vault 2912 | -9/Exiles | Found Superbattery 2960 | -9/Exiles | Found Skeleton Box 3023 | -9/Exiles | Warned to stay clear of 0b10 Research branches 3160 | -9/Exiles | Attacked by the Exiles 3206 | -9/Exiles | Discovered new exit (range 10) 3227 | -9/Exiles | Left Exiles lab with Superbattery 3227 | -9/Exiles | Entered Mines 3262 | -8/Mines | NK-0LA came to Exiles' defense 3265 | -8/Mines | Core integrity fell below 50% 3270 | -8/Mines | Lost 8 parts (2p2n1u3w) 3289 | -8/Mines | System corruption reached 10% 3301 | -8/Mines | Core integrity fell below 20% 3313 | -8/Mines | Destroyed by NK-0LA with NK-0LA's Tesla Doomcannon Last Messages --------------- Slug penetrates Wall. Slug penetrates NK-0LA. Lgt. Treads destroyed. Hrd. Light Armor Plating destroyed. Lgt. Treads destroyed. System corrupted: Matter fused (-6). Slug penetrates NK-0LA. Slug penetrates Wall. Gauss Rifle destroyed. Discarded Terrain Scan Processor. R-06 Scavenger destroyed. Slug penetrates R-06 Scavenger. Slug penetrates Wall. Slug penetrates NK-0LA. The unstable cave ceiling collapses. Slug penetrates NK-0LA. YLKA4QIHM:MXEF|G67DT2K2YCOB0W3F4X3D Lgt. Treads destroyed. The unstable cave ceiling collapses. Dropped Rigged Lgt. Fission Core. Map ----- +----------------------------------------------------+ | ??????????????????????????????? | | ??????????????????????????????? | | ??????????????????????????????? | | ??????????????????????????????? | | ??????????????????????????????? | | ??????????????????????????????? | | ??????????????????????????????? | | ??????????????????????????????? | | ??????????????????????????????? | | ??????????????????????????????? | | ??????????????????????????????? | | ??????????????????????????????? | | ??????????????????????????##??? | | ????????????????????###### #??? | | ????????????????????# ##; ###? | | ????????????????????# = #? | | ???????????????????## % ## | | ???????????????????# # | | ???????????????????## % # # | | ???????????????????## # | | ???????????????????# # # | | ???????????????????## % # | | ???????????????????# # # # | | ???????????????????## # | | ????????????????????### ### | | ?????????????????????####@# #?? | | ????????????????????????#=###?? | | ????????????????????????%x#???? | | ????????????????????????== ???? | | ??????????????????????? ???? | | ??????????????????????? ???? | | ??????????????????????# ##??? | | ??????????????????????#####???? | | ??????????????????????????????? | | ??????????????????????????????? | | ??????????????????????????????? | | ??????????????????????????????? | | ??????????????????????????????? | | ??????????????????????????????? | | | | | | | | | | | | | | | | | | | | | | | +----------------------------------------------------+ Best States ------------- Heat Dissipation 38 Energy Generation 10 Energy Capacity 250 Matter Stores 300 Matter Capacity 300 Sight Range 16 Terrain Scan Range 16 Terrain Scan Density 85 Armor Coverage 600 Evasion (%) 55 Recoil Reduction 2 Item Schematics ----------------- Utility Shielding | -9/Materials | Scanalyzed Ion Engine | -9/Materials | Scanalyzed Robot Schematics ------------------ None Fabricated ------------ Nothing Alien Tech Used ----------------- None Achievements -------------- None Challenges ------------ None Game ------ Seed OmegaGatlingGreatsword Manual? 0 Play Time 00:20:02 Cumulative 239.6 hours Start 2021.07.18 @ 17:31:04 End 2021.07.18 @ 17:49:55 Sessions 1 Manual Loads 0 Difficulty Rogue Special Mode None Game No. 292 Rogue 292 Adventurer 0 Explorer 0 Win Type - Total 3 Types 3/0/0/0/0/0/0/0/0 Lore% 64 Gallery% 81 Achievement% 59 Wizard Run 0 Options --------- ASCII 0 Keyboard 0 Movement Mouse Keybinds 1 Fullscreen 2 Font 24/Smallcaps Map View 76x50 Tactical HUD 1 Map Filters NONE Filters NONE Steam 1 RUN: f560f2b4-96a5-4078-b7ee-c29c51dac394